Cogmind - Beta 17.1 @@@ ROGUE MODE // 2026.09.22 @ 22:37:11 Player: Lazz Result: Destroyed by Autobeam Turret with Autobeam Performance ------------- Evolutions (0) 0 Regions Visited (2) 400 Robots Destroyed (25) 125 Value Destroyed (654) 654 Prototype IDs (3) 60 Alien Tech Used (0) 0 Bonus (5500) 5500 TOTAL SCORE: 6739 Bonus ------- Prayed to X0-1V1 5000 Major X0-1V1 Interference 500 Cogmind --------- Core Integrity 0/150 Matter 5/150 Energy 1189/1200 System Corruption 0% Temperature Cool (6) Movement Core (50) Location -10/Subcaves Parts ------- > --- POWER (1) -------- (None) > --- PROPULSION (2) --- (None) > --- UTILITY (2) ------ X0-1V1's Piety Tracker > --- WEAPON (3) ------- Mace > --- INVENTORY (5) ---- Subdweller Optics Light Assault Rifle Battle Rifle Mining Laser Enhanced Flamer Peak State ------------ > --- POWER ------------ Subdweller Power Source > --- PROPULSION ------- Wheel Subdweller Monowheel > --- UTILITY ---------- Small Storage Unit X0-1V1's Piety Tracker > --- WEAPON ----------- Battle Rifle Subdweller Machine Gun > --- INVENTORY -------- Subdweller Optics Improved Terrain Scanner Light Assault Rifle Battle Rifle Grenade Launcher Mining Laser Enhanced Flamer [Rating: 24] Favorites ----------- Power Subdweller Power Source Engine Subdweller Power Source Propulsion Light Treads Treads Light Treads Wheel Subdweller Monowheel Utility Small Storage Unit Device X0-1V1's Piety Tracker Storage Small Storage Unit Weapon Light Assault Rifle Ballistic Gun Light Assault Rifle Launcher Grenade Launcher Special Weapon Mining Laser Impact Weapon Mace Build | -11 -10 -10 ------- Run | Yrd Mat Sub Slots Evolved . | . . . Power . | . . . Propulsion . | . . . Utility . | . . . Weapon . | . . . Parts Attached 17 | 7 1 9 Power 2 | 1 . 1 Engine 2 | 1 . 1 Core . | . . . Reactor . | . . . Propulsion 5 | 2 . 3 Treads 2 | 2 . . Leg . | . . . Wheel 3 | . . 3 Hover . | . . . Flight . | . . . Utility 3 | 2 . 1 Device 2 | 1 . 1 Storage 1 | 1 . . Processor . | . . . Hackware . | . . . Protection . | . . . Artifact . | . . . Weapon 7 | 2 1 4 Energy Gun . | . . . Energy Cannon . | . . . Ballistic Gun 4 | 2 . 2 Ballistic Cannon . | . . . Launcher 1 | . 1 . Special Weapon 1 | . . 1 Impact Weapon 1 | . . 1 Slashing Weapon . | . . . Piercing Weapon . | . . . Special Melee Weapon . | . . . Unidentified Prototypes 1 | . . 1 Parts Lost 10 | . 2 8 Power 2 | . . 2 Propulsion 4 | . 1 3 Utility 1 | . 1 . Weapon 3 | . . 3 Highest Loss Streak 2 | . 2 2 To Critical Strikes . | . . . Average Backups 5 | 1 2 6 Power . | . . . Propulsion . | . . . Utility 1 | . 1 1 Weapon 3 | . 1 4 Tool/Special . | . . . Unused Backups 7 | . . 7 Power . | . . . Propulsion . | . . . Utility 4 | . . 4 Weapon 3 | . . 3 Tool/Special . | . . . Average Slot Usage (%) 88 | . 91 87 Engine 9 | . 14 8 Treads 6 | . 24 1 Wheel 15 | . . 19 Device 12 | . 9 13 Storage 13 | . 14 13 Ballistic Gun 16 | . 21 15 Launcher 2 | . 6 1 Special Weapon 6 | . . 7 Impact Weapon 2 | . . 3 Peak Build Rating 24 | 7 7 24 Average Rating 16 | 4 6 21 On Entrance 4 | . 7 6 Avg Prop Armor Cover (%) 5 | . . 5 Naked Turns . | . . . Heaviest Build 20 | 11 13 20 Greatest Support 40 | 40 40 30 Greatest Overweight (x) 6 | . . 6 Average Overweight (x) . | . . . Largest Inventory Capacity 8 | 8 8 8 Average Capacity 7 | 5 8 8 Most Carried 8 | 3 4 8 Average Carried 5 | 1 2 6 Final Capacity 8 | 8 8 5 Final Carried 5 | 2 4 5 Class Distribution -------------------- 71% | Mutant 28% | Scavenger-Mutant Dominant Class ---------------- Mutant | -10/Materials Mutant | -10/Subcaves Resources | -11 -10 -10 ----------- Run | Yrd Mat Sub Matter Collected 589 | 235 201 153 Remotely . | . . . Salvage Created 635 | 63 312 260 Parts 46 | 10 15 21 Haulers Intercepted . | . . . Recyclers Shooed . | . . . Parts Field Recycled . | . . . Retrieved Matter . | . . . Parts Self-Destructed 5 | . . 5 Prevented . | . . . Parts Restored . | . . . Kills | -11 -10 -10 ------- Run | Yrd Mat Sub Combat Hostiles Destroyed 20 | . 8 12 Guns 8 | . 4 4 AOE 11 | . 4 7 Classes Destroyed 7 | 1 3 3 Tunneler 3 | 3 . . Operator 1 | . 1 . Watcher 1 | . 1 . Swarmer 7 | . . 7 Grunt 8 | . 8 . Artisan 1 | . . 1 Subdweller 5 | . . 5 Best Kill Streak 4 | 2 3 4 Combat Bots Only 4 | . 2 4 Max Kills in Single Turn 2 | 1 2 2 Gunslinging . | . . . Exploded 2 | . 2 2 Melee . | . . . Uniques/NPCs Destroyed . | . . . Combat | -11 -10 -10 -------- Run | Yrd Mat Sub Hostile Shots Fired 127 | . 60 67 Missed 49 | . 22 27 Hits 78 | . 38 40 Projectile 78 | . 38 40 AOE 3 | . . 3 Damage Taken 1333 | . 502 831 Core 285 | . 48 237 Absorbed by Shields . | . . . Ignored by Resistances 38 | . . 38 Core Remaining (%) 100 | 100 . . Volleys Fired 100 | 11 38 51 Largest 2 | 2 2 2 Hottest 130 | 40 40 130 Shots Fired 160 | 22 67 71 Gun 120 | 22 58 40 Cannon . | . . . Launcher 23 | . 9 14 Special 17 | . . 17 Kinetic 120 | 22 58 40 Thermal 17 | . . 17 Explosive 23 | . 9 14 Electromagnetic . | . . . Robot Hit Streak 15 | 6 15 14 Robot Miss Streak 4 | 4 2 2 Penetration Max . | . . . Secondary Targets 1 | . 1 . Max Gunslinging Chain 1 | . 1 . Shots Hit Robots 100 | 14 49 37 Core Hits 53 | 5 22 26 Critical Kills . | . . . Critical Parts Destroyed 1 | . . 1 Critical Strikes 1 | . . 1 Smash 1 | . . 1 Melee Attacks 5 | . . 5 Impact 5 | . . 5 Slashing . | . . . Piercing . | . . . Sneak Attacks . | . . . Combat Hostiles . | . . . Follow-up Attacks . | . . . Damage Inflicted 1956 | 125 800 1031 Guns 875 | 125 377 373 Cannons . | . . . Explosions 916 | . 423 493 Melee 69 | . . 69 Ramming . | . . . Kinetic 875 | 125 377 373 Thermal 167 | . 71 96 Explosive 845 | . 352 493 Electromagnetic . | . . . Impact 69 | . . 69 Slashing . | . . . Piercing . | . . . Highest Corruption 13 | . . 13 Average Corruption 7 | . . 7 Corruption Purged . | . . . Corruption Blocked . | . . . Effects 5 | . . 5 Message Errors 2 | . . 2 Matter Fused 1 | . . 1 Heat Flow Errors 1 | . . 1 Data Loss (minor) 1 | . . 1 Overload Shots . | . . . Overflow Damage 70 | . 31 39 Projectiles . | . . . Explosions 37 | . 31 6 Melee 33 | . . 33 Knockbacks 2 | . . 2 Impact 2 | . . 2 Kinetic . | . . . Secondary . | . . . Self-Inflicted Damage 40 | . . 40 Shots 1 | . . 1 Rammed . | . . . Targets Rammed . | . . . Kicked . | . . . Crushed . | . . . Highest Temperature 167 | . 18 167 Average Temperature 17 | . 8 99 Received Heat Transfer 417 | . 282 135 Siege Activations . | . . . Martial Activations . | . . . Shielding Activations . | . . . Robots Disrupted . | . . . Combat Hostiles . | . . . Robots Corrupted . | . . . Combat Hostiles . | . . . Parts Fried . | . . . Impact Corruptions 1 | . . 1 Robots Melted . | . . . Combat Hostiles . | . . . Parts Melted . | . . . Heat Transferred 250 | . 50 200 Parts Sabotaged . | . . . Parts Stolen . | . . . Parts Stripped . | . . . Power Chain Reactions . | . . . Alert | -11 -10 -10 ------- Run | Yrd Mat Sub Maximum Alert Level . | . . . Low Security (%) 100 | 100 100 . Level 1 . | . . . Level 2 . | . . . Level 3 . | . . . Level 4 . | . . . Level 5 . | . . . High Security . | . . . Max Security . | . . . Peak Influence 149 | 10 149 . Initial . | . . . Average 27 | . 36 . Influence Increases 504 | 15 289 200 Destroy 0b10 Robot/C 300 | . 160 140 Destroy 0b10 Robot/NC 25 | 15 10 . Destroy Leader 42 | . 42 . Disable Machine 30 | . 30 . Destroy Structure 47 | . 47 . Lose Combat Pursuer 60 | . . 60 Influence Decreases 378 | 15 289 74 Time Decay 199 | 15 140 44 Lost Part 50 | . 20 30 Purge Threat 129 | . 129 . Squads Dispatched 2 | . 2 . Investigation 2 | . 2 . Extermination . | . . . Reinforcement . | . . . Assault . | . . . Garrison . | . . . Intercept . | . . . Searches Triggered . | . . . Construction Impeded . | . . . Haulers Reinforced . | . . . Active Scanning Responses . | . . . Cargo Convoy Interrupts . | . . . Stealth | -11 -10 -10 --------- Run | Yrd Mat Sub Distress Signals 1 | . 1 . Communications Jammed . | . . . Distress Signals . | . . . Times Spotted 36 | . 16 20 Peak Tracking Total 5 | . 4 5 Tactical Retreats 2 | . . 2 Traps | -11 -10 -10 ------- Run | Yrd Mat Sub Traps Triggered 2 | . 1 1 Indirectly . | . . . Trap Hack Attempts . | . . . Triggered . | . . . Disarmed . | . . . Reprogrammed . | . . . Reused . | . . . Traps Extracted . | . . . Installed . | . . . Triggered . | . . . Machines | -11 -10 -10 ---------- Run | Yrd Mat Sub Machines Disabled 4 | . 2 2 Max in Single Turn 2 | . 2 2 Machines Repaired . | . . . Machines Dismantled . | . . . Machines Sabotaged . | . . . Overloaded Fab Kills . | . . . Hacking | -11 -10 -10 --------- Run | Yrd Mat Sub Machines Accessed 4 | . 3 1 Terminals 3 | . 3 . Fabricators . | . . . Repair Stations . | . . . Recycling Units . | . . . Scanalyzers . | . . . Garrison Access . | . . . Total Hacks 11 | . 7 4 Successful 7 | . 3 4 Failed 4 | . 4 . Catastrophic 2 | . 2 . Database Lockouts . | . . . Manual 7 | . 7 . Terminals 7 | . 7 . Fabricators . | . . . Repair Stations . | . . . Recycling Units . | . . . Scanalyzers . | . . . Garrison Access . | . . . Terminal Hacks 7 | . 3 4 Record 4 | . . 4 Prototype ID Bank 1 | . 1 . Unreport Threat 1 | . 1 . Hauler Manifests 1 | . 1 . Fabricator Hacks . | . . . Repair Station Hacks . | . . . Recycling Unit Hacks . | . . . Scanalyzer . | . . . Garrison Access Hacks . | . . . Unauthorized Hacks . | . . . Terminals . | . . . Fabricators . | . . . Repair Stations . | . . . Recycling Units . | . . . Scanalyzers . | . . . Garrison Access . | . . . Data Cores Recovered 1 | . 1 . Used . | . . . Hacking Detections 3 | . 3 . Full Trace Events 2 | . 2 . Feedback Events . | . . . Feedback Blocked . | . . . Robot Schematics Acquired . | . . . Robots Built . | . . . Authchips . | . . . Time . | . . . Total Robot Build Rating . | . . . Part Schematics Acquired . | . . . Parts Built . | . . . Authchips . | . . . Time . | . . . Total Part Build Rating . | . . . Part Studies Acquired . | . . . Parts Repaired . | . . . Time . | . . . Parts Recycled . | . . . Recycled Matter . | . . . Retrieved Matter . | . . . Retrieved Components . | . . . Parts Scanalyzed . | . . . Part Schematics Acquired . | . . . Parts Damaged . | . . . Bothacking | -11 -10 -10 ------------ Run | Yrd Mat Sub Used RIF Installer . | . . . Robots Hacked . | . . . Non-combat . | . . . Combat . | . . . Robot Hacks Applied . | . . . Relay Couplers Released . | . . . Fabnet Peak Effective % . | . . . Robots Rewired . | . . . Allies Hacked . | . . . Hacks Repelled . | . . . Allies | -11 -10 -10 -------- Run | Yrd Mat Sub Total Allies . | . . . Largest Group . | . . . Highest-Rated Group . | . . . Highest-Rated Ally . | . . . Total Orders . | . . . Ally Attacks . | . . . Total Damage . | . . . Kills . | . . . Allies Corrupted . | . . . Allies Melted . | . . . X0-1V1 Amusement Gains 25 | . 15 10 Average Entertainment 7 | . 15 7 Good Acts 22 | . . 22 Bad Acts 9 | . . 9 Intel | -11 -10 -10 ------- Run | Yrd Mat Sub Active Infowar (turns) 349 | 63 286 . Seismic 349 | 63 286 . Robot Analysis Total . | . . . Derelict Logs Recovered . | . . . Drone Launches . | . . . Drone Recoveries . | . . . Exploration | -11 -10 -10 ------------- Run | Yrd Mat Sub Turns Passed 1957 | 152 402 1403 Spaces Moved 1230 | 70 175 985 Core 99 | 3 . 96 Treads 302 | 67 175 60 Legs . | . . . Wheels 829 | . . 829 Hover . | . . . Flight . | . . . Fastest Speed 50 | 50 160 50 Average Speed 126 | 155 160 118 Slowest Speed 350 | 160 160 350 Overloaded Moves . | . . . Propulsion Burnouts . | . . . Robots Hopped . | . . . Potential Cave-ins . | . . . Cave-ins Triggered . | . . . Exploration Rate (%) 34 | 3 46 54 Regions Visited 2 Branch Regions 1 Pre-discovered Areas . | . . . Known Exits Taken . | . . . Unknown Exits Taken 2 | 1 1 . Scrap Searched 3 | . . 3 Spaces Dug . | . . . Terrain Destroyed 115 | . 50 65 Melee . | . . . Projectile . | . . . AOE 115 | . 50 65 Terrain Rammed . | . . . Walls Destroyed . | . . . Machines Disabled . | . . . Actions | -11 -10 -10 --------- Run | Yrd Mat Sub Total 1448 | 94 241 1113 Wait 77 | 2 25 50 Move 1228 | 69 174 985 Hop . | . . . Pick Up 15 | 5 2 8 Fast Attach 8 | 4 . 4 Attach 6 | 3 . 3 Detach . | . . . Swap 5 | . 2 3 Drop 4 | . . 4 Fire 100 | 11 38 51 Melee 5 | . . 5 Ram . | . . . Kick . | . . . Crush . | . . . Escape Stasis . | . . . Rewire . | . . . Trap . | . . . Miscellaneous . | . . . Route ------- -11/Scrapyard -10/Materials (discovered 2 exits: [*Mat] / *Sub) -10/Subcaves (discovered 3 exits: *Mat x2 / *Rec) History --------- Turn | Location | Event 14 | -11/Scrapyard | Discovered new exit (range 15) 153 | -11/Scrapyard | Entered Materials 312 | -10/Materials | Build established: Mutant 330 | -10/Materials | Discovered new exit (range 16) 538 | -10/Materials | Discovered new exit (range 10) 553 | -10/Materials | Prayed at D.C.S.S. Altar Unit 555 | -10/Materials | Entered Subcaves 593 | -10/Subcaves | Discovered new exit (range 9) 870 | -10/Subcaves | Energy capacity permanently improved by X0-1V1 (+200; -100 max core) 1067 | -10/Subcaves | A swath of the cavern ceiling suddenly collapsed 1201 | -10/Subcaves | X0-1V1 activates XOMVISION 1261 | -10/Subcaves | Visited Clippyterm 1264 | -10/Subcaves | Learned Factory stockpile data 1382 | -10/Subcaves | Build established: Scavenger-Mutant 1574 | -10/Subcaves | X0-1V1 activates XOMVISION 1583 | -10/Subcaves | Disturbed a concealed Subdweller 1592 | -10/Subcaves | Weapon slot count temporarily expanded by X0-1V1 (+1) 1595 | -10/Subcaves | X0-1V1 caused items to flee you 1599 | -10/Subcaves | Identified exit to Materials 1599 | -10/Subcaves | X0-1V1 revealed exit location to -8/Materials 1731 | -10/Subcaves | Core integrity fell below 50% 1746 | -10/Subcaves | X0-1V1 sent hostile S-10 Pest (x3) 1770 | -10/Subcaves | Core integrity restored by X0-1V1 (+25) 1773 | -10/Subcaves | Identified exit to Recycling 1773 | -10/Subcaves | X0-1V1 revealed exit location to -8/Recycling 1922 | -10/Subcaves | Build established: Mutant 1923 | -10/Subcaves | Items stopped fleeing you 1927 | -10/Subcaves | System corruption reached 10% 1940 | -10/Subcaves | X0-1V1 activates XOMVISION 1942 | -10/Subcaves | Core integrity restored by X0-1V1 (+36) 1948 | -10/Subcaves | Ambushed by Subdweller buried in earth 1958 | -10/Subcaves | Destroyed by Autobeam Turret with Autobeam Last Messages --------------- 01942_ X0-1V1: "See? It buffs right out!" (+36 core integrity) 01946_ Machine disabled. 01946_ Destroyed Lgt. Ion Engine. 01946_ Machine disabled. 01946_ S-10 Pest destroyed. 01949_ RK-V1F(R): "ARGHSUB!" 01950_ RK-V1F(R) destroyed. 01952_ Flight Unit fries itself beyond repair. 01952_ Lgt. Assault Rifle fries itself beyond repair. 01954_ Grenade Launcher destroyed. 01956_ Lgt. Ion Engine fries itself beyond repair. 01958_ Dropped Sml. Storage Unit. 01958_ X0-1V1: "Your inner air conditioner seems to have fallen into disrepair." (-18 heat dissipation) 01958_ X0-1V1: "I guess I need a new plaything now." Map ----- +----------------------------------------------------+ | ????????????????????????????????##???????????????? | | ????????????????????######??????#"???????????????? | | ?????????????????#### # #??????#!##?????????????? | | ???????????####??#"# #??????# ##?????????#### | | ???????????" #??#"" ##?????#" "###??????## | | ???????????" #??#"" ######## ## #?????## | | ???????????" ##?## #&* #" " ####?## | | ???????????# " #??## %&! #=### | | ???????????#" ???## & ! ### | | ???????"?### " #????## [% % | | ???????" #"# "#?????## % ] ## # | | ???????? "" #?????# & ##### | | ?????????"" ########! # !######### | | ????????# ;; ##### ########???# ### | | ###### ; ## ##??????????# ### | | | ### #???????????# "#?# " | | ???# R #?????????####" #?# " | | ???# # ### ; #????????## ## #?##" " | | ??????????## ##???????## " ##?## | | ???????????# #######?## """#??##" | | ???????????# # ;; ;; ### "##??## | | ???????????# # ""##??? | | ???????????#### ### "##?? | | ??????????????# #?# ;### " #?? | | ??????????????####?## ! ;##### ### """ #?# | | ???????!????????????# @] ;;# ## #?######"""#?# | | ???????????????" """ ; ###???????#" ## | | ??????????????# ##???????? ### | | ??????????????#% t % ##?######? ### | | ???????????? % & # #?#" #### | | ?????????? *>%*### ######?# & | | ?????????? % & ## % #??????# % | | ?????????? ## t # ## #??#### ####### | | ??????????????# % ##?###?## #?????# | | ??????????????#" """## ##??????# ##????# | | ??????????????######### ##???????## #????? | | ?????????????????##### ##?????????#### #????? | | ?????????????????# #???????????#### #????? | | ?????????????????# % ##???######## ## ##????? | | ?????????????????### ##### # #????## | | ???????????????????###% # #### #####?# | | ?????????????????????##### ##??## ### #?# | | ?????????????????????????## ##????# ## #?# | | ??????????????????????????## #?????# #### | | ???????????????????????????### ##???## ### | | ???????????????????????????### ##### ## | | ???????????????????????????# | | ???????????????????????????# ####### | | ???????????????????????????# ###### # | | ??????????????????????????### # | +----------------------------------------------------+ Best States ------------- Heat Dissipation 25 Energy Generation 15 Energy Capacity 1300 Matter Stores 300 Matter Capacity 300 Sight Range 18 Terrain Scan Density 10 Resistance: KI 20 Evasion (%) 44 Recoil Reduction 2 Item Schematics ----------------- None Robot Schematics ------------------ None Fabricated ------------ Nothing Repaired ---------- Nothing Studied --------- None Alien Tech Used ----------------- None Achievements -------------- None Challenges ------------ None Game ------ Seed GuidanceStrikeDevice Manual? 0 Play Time 00:14:23 Cumulative 323.7 hours Start 2026.09.22 @ 22:24:58 End 2026.09.22 @ 22:37:11 Sessions 1 Manual Loads 0 Difficulty Rogue Special Mode None Game No. 401 Rogue 401 Adventurer 0 Explorer 0 Win Type - Total 11 Types 8/0/1/1/0/0/0/1/0/0 Lore% 82 Gallery% 70 Achievement% 60 Wizard Run 0 Options --------- Layout 2 ASCII 0 Keyboard 0 Movement Mouse Keybinds 0 Fullscreen 1 Font 16/SmallcapsGlow Map View 50x49 Zoom Use 0% Tactical HUD 1 Map Filters NONE Filters NONE Steam SD RUN: 92c07e85-98cf-46b9-9a51-f18beacc95d4